[Event "Champions Chess Tour Finals 2024"]
[Date "2024.12.18"]
[White "Keymer, Vincent"]
[Black "Nepomniachtchi, Ian"]
[WhiteElo "2649"]
[BlackElo "2758"]
[Round "6.2"]
[Result "1-0"]
[TimeControl "600+2"]

1. c4 {[%clk 0:10:03]} e5 {[%clk 0:10:02]} 2. g3 {[%clk 0:10:04]} c6 {[%clk
0:10:03]} 3. d4 {[%clk 0:10:05]} Bb4+ {[%clk 0:10:04]} 4. Bd2 {[%clk 0:10:06]}
Bxd2+ {[%clk 0:10:05]} 5. Qxd2 {[%clk 0:10:07]} d6 {[%clk 0:10:06]} 6. Nc3
{[%clk 0:10:08]} Nf6 {[%clk 0:10:07]} 7. O-O-O {[%clk 0:10:08]} e4 {[%clk
0:10:05]} 8. f3 {[%clk 0:10:07]} Qe7 {[%clk 0:09:56]} 9. Qf4 {[%clk 0:10:07]}
exf3 {[%clk 0:09:32]} 10. Nxf3 {[%clk 0:10:05]} d5 {[%clk 0:08:21]} 11. e4
{[%clk 0:07:48]} dxe4 {[%clk 0:08:14]} 12. Re1 {[%clk 0:07:49]} O-O {[%clk
0:06:12]} 13. Nxe4 {[%clk 0:07:50]} Nxe4 {[%clk 0:06:07]} 14. Rxe4 {[%clk
0:07:50]} Qb4 {[%clk 0:05:59]} 15. Bd3 {[%clk 0:06:32]} Nd7 {[%clk 0:06:00]} 16.
a3 {[%clk 0:06:04]} Qa4 {[%clk 0:05:30]} 17. Qh4 {[%clk 0:05:26]} h6 {[%clk
0:04:32]} 18. g4 {[%clk 0:03:36]} Nf6 {[%clk 0:04:31]} 19. Rf4 {[%clk 0:03:31]}
Qb3 {[%clk 0:04:22]} 20. Rd1 {[%clk 0:02:47]} Nxg4 {[%clk 0:02:36]} 21. Rxg4
{[%clk 0:02:47]} Bxg4 {[%clk 0:02:38]} 22. Qxg4 {[%clk 0:02:48]} f5 {[%clk
0:02:29]} 23. Qg3 {[%clk 0:02:34]} Rae8 {[%clk 0:02:15]} 24. Ne5 {[%clk
0:02:32]} Rf6 {[%clk 0:02:09]} 25. c5 {[%clk 0:01:23]} Kh8 {[%clk 0:02:10]} 26.
Rg1 {[%clk 0:00:59]} Re7 {[%clk 0:02:11]} 27. h4 {[%clk 0:00:14]} b5 {[%clk
0:01:16]} 28. h5 {[%clk 0:00:15]} Kg8 {[%clk 0:01:17]} 29. Bc2 {[%clk 0:00:10]}
Qxg3 {[%clk 0:01:15]} 30. Rxg3 {[%clk 0:00:11]} g5 {[%clk 0:00:58]} 31. hxg6
{[%clk 0:00:11]} Kg7 {[%clk 0:00:59]} 32. Rf3 {[%clk 0:00:11]} f4 {[%clk
0:00:59]} 33. Be4 {[%clk 0:00:12]} h5 {[%clk 0:00:59]} 34. Kd2 {[%clk 0:00:13]}
Kh6 {[%clk 0:00:52]} 35. Kd3 {[%clk 0:00:13]} h4 {[%clk 0:00:48]} 36. Ng4+
{[%clk 0:00:14]} 1-0

[Variant "Standard"]
[Site "Europe Echecs"]

[Event "Champions Chess Tour Finals 2024"]
[Date "2024.12.18"]
[White "Aronian, Levon"]
[Black "Carlsen, Magnus"]
[WhiteElo "2818"]
[BlackElo "2838"]
[Round "6.2"]
[Result "1/2-1/2"]
[TimeControl "600+2"]

1. e4 {[%clk 0:10:03]} c5 {[%clk 0:10:03]} 2. Nf3 {[%clk 0:10:04]} e6 {[%clk
0:10:04]} 3. d3 {[%clk 0:10:02]} Nc6 {[%clk 0:10:01]} 4. g3 {[%clk 0:10:03]} g6
{[%clk 0:10:01]} 5. Bg5 {[%clk 0:10:01]} f6 {[%clk 0:09:44]} 6. Be3 {[%clk
0:09:36]} d5 {[%clk 0:08:50]} 7. exd5 {[%clk 0:09:37]} exd5 {[%clk 0:08:51]} 8.
d4 {[%clk 0:09:39]} c4 {[%clk 0:08:43]} 9. Bg2 {[%clk 0:09:36]} Bd6 {[%clk
0:08:40]} 10. O-O {[%clk 0:09:26]} Nge7 {[%clk 0:08:41]} 11. Bh6 {[%clk
0:09:17]} Nf5 {[%clk 0:08:15]} 12. Re1+ {[%clk 0:09:19]} Kf7 {[%clk 0:07:49]}
13. Bd2 {[%clk 0:07:56]} h5 {[%clk 0:06:27]} 14. Nc3 {[%clk 0:07:51]} Nce7
{[%clk 0:06:27]} 15. b3 {[%clk 0:06:02]} cxb3 {[%clk 0:06:25]} 16. axb3 {[%clk
0:06:03]} Bd7 {[%clk 0:06:14]} 17. Qe2 {[%clk 0:05:28]} a6 {[%clk 0:05:47]} 18.
Na4 {[%clk 0:04:30]} Rc8 {[%clk 0:05:46]} 19. c4 {[%clk 0:04:27]} Re8 {[%clk
0:05:35]} 20. c5 {[%clk 0:04:16]} Bc7 {[%clk 0:05:10]} 21. Nc3 {[%clk 0:03:57]}
Nc6 {[%clk 0:05:08]} 22. Qd3 {[%clk 0:03:40]} Nb4 {[%clk 0:05:07]} 23. Rxe8
{[%clk 0:03:21]} Qxe8 {[%clk 0:04:37]} 24. Qb1 {[%clk 0:03:22]} Ne7 {[%clk
0:04:20]} 25. Nh4 {[%clk 0:02:51]} Be6 {[%clk 0:04:12]} 26. Ne2 {[%clk 0:02:35]}
Nbc6 {[%clk 0:04:11]} 27. b4 {[%clk 0:02:36]} Qd7 {[%clk 0:04:00]} 28. Be3
{[%clk 0:02:14]} Rh8 {[%clk 0:03:42]} 29. Nc3 {[%clk 0:02:03]} Bh3 {[%clk
0:03:17]} 30. Bxd5+ {[%clk 0:01:20]} Kg7 {[%clk 0:02:58]} 31. Be4 {[%clk
0:01:01]} Nxd4 {[%clk 0:02:48]} 32. Bxb7 {[%clk 0:00:46]} Rb8 {[%clk 0:02:34]}
33. Be4 {[%clk 0:00:46]} Be5 {[%clk 0:02:24]} 34. Bxg6 {[%clk 0:00:30]} Ndc6
{[%clk 0:02:10]} 35. Ra3 {[%clk 0:00:05]} Rxb4 {[%clk 0:02:09]} 36. Qd3 {[%clk
0:00:06]} Rxh4 {[%clk 0:01:59]} 37. Qxd7 {[%clk 0:00:06]} Bxd7 {[%clk 0:01:59]}
38. gxh4 {[%clk 0:00:07]} Kxg6 {[%clk 0:01:58]} 39. Ne4 {[%clk 0:00:06]} a5
{[%clk 0:01:57]} 40. Bd2 {[%clk 0:00:06]} Bd4 {[%clk 0:01:47]} 41. Bxa5 {[%clk
0:00:06]} Nxa5 {[%clk 0:01:33]} 42. Rxa5 {[%clk 0:00:07]} Nc6 {[%clk 0:01:34]}
43. Ra6 {[%clk 0:00:05]} Kf5 {[%clk 0:01:32]} 44. Ng3+ {[%clk 0:00:05]} Kg6
{[%clk 0:01:28]} 45. Ne2 {[%clk 0:00:06]} Bxc5 {[%clk 0:01:25]} 46. Nf4+ {[%clk
0:00:08]} Kh6 {[%clk 0:01:17]} 47. Kg2 {[%clk 0:00:09]} Bd6 {[%clk 0:01:06]} 48.
Nd5 {[%clk 0:00:09]} Kg6 {[%clk 0:01:05]} 49. f3 {[%clk 0:00:10]} Kf7 {[%clk
0:00:59]} 50. Nb6 {[%clk 0:00:10]} Be8 {[%clk 0:01:00]} 51. Nc4 {[%clk 0:00:11]}
Bf4 {[%clk 0:00:57]} 52. Ra3 {[%clk 0:00:05]} Nd4 {[%clk 0:00:55]} 53. Ra5
{[%clk 0:00:04]} Bc6 {[%clk 0:00:54]} 54. Kf2 {[%clk 0:00:04]} Bxf3 {[%clk
0:00:52]} 55. Ne3 {[%clk 0:00:04]} Bxe3+ {[%clk 0:00:43]} 56. Kxe3 {[%clk
0:00:05]} Nc6 {[%clk 0:00:44]} 57. Rc5 {[%clk 0:00:05]} Ne5 {[%clk 0:00:45]} 58.
Rc3 {[%clk 0:00:03]} Bd5 {[%clk 0:00:44]} 1/2-1/2

[Variant "Standard"]
[Site "Europe Echecs"]

[Event "Champions Chess Tour Finals 2024"]
[Date "2024.12.18"]
[White "Lazavik, Denis"]
[Black "So, Wesley"]
[WhiteElo "2553"]
[BlackElo "2826"]
[Round "6.2"]
[Result "1/2-1/2"]
[TimeControl "600+2"]

1. d4 {[%clk 0:10:02]} Nf6 {[%clk 0:10:03]} 2. c4 {[%clk 0:10:02]} e6 {[%clk
0:10:04]} 3. Nf3 {[%clk 0:10:02]} d5 {[%clk 0:10:05]} 4. Nc3 {[%clk 0:10:00]}
Nbd7 {[%clk 0:09:57]} 5. Bg5 {[%clk 0:09:49]} h6 {[%clk 0:09:50]} 6. Bh4 {[%clk
0:09:49]} Be7 {[%clk 0:09:48]} 7. e3 {[%clk 0:09:44]} O-O {[%clk 0:09:48]} 8.
Rc1 {[%clk 0:09:41]} a6 {[%clk 0:09:44]} 9. cxd5 {[%clk 0:09:23]} exd5 {[%clk
0:09:44]} 10. Bd3 {[%clk 0:09:23]} Re8 {[%clk 0:09:40]} 11. O-O {[%clk 0:09:23]}
c6 {[%clk 0:09:40]} 12. Bg3 {[%clk 0:09:12]} Nh5 {[%clk 0:09:30]} 13. Nxd5
{[%clk 0:09:09]} Nxg3 {[%clk 0:08:37]} 14. Nxe7+ {[%clk 0:09:09]} Qxe7 {[%clk
0:08:38]} 15. hxg3 {[%clk 0:09:09]} Nf6 {[%clk 0:08:39]} 16. Qc2 {[%clk
0:08:56]} Be6 {[%clk 0:08:38]} 17. Bc4 {[%clk 0:08:54]} Nd5 {[%clk 0:08:29]} 18.
a3 {[%clk 0:08:48]} Rad8 {[%clk 0:08:28]} 19. Rfe1 {[%clk 0:08:41]} Nc7 {[%clk
0:08:18]} 20. Bxe6 {[%clk 0:08:30]} Nxe6 {[%clk 0:08:18]} 21. Rcd1 {[%clk
0:08:29]} Ng5 {[%clk 0:07:49]} 22. Nxg5 {[%clk 0:08:15]} hxg5 {[%clk 0:07:49]}
23. Qb3 {[%clk 0:07:45]} Rd7 {[%clk 0:07:25]} 24. d5 {[%clk 0:07:34]} cxd5
{[%clk 0:07:10]} 25. Rxd5 {[%clk 0:07:34]} Qe6 {[%clk 0:07:11]} 26. Rd3 {[%clk
0:07:28]} Qxb3 {[%clk 0:07:03]} 27. Rxb3 {[%clk 0:07:29]} Rc8 {[%clk 0:07:04]}
28. Rc3 {[%clk 0:06:36]} Rxc3 {[%clk 0:06:44]} 29. bxc3 {[%clk 0:06:37]} Kf8
{[%clk 0:06:43]} 30. a4 {[%clk 0:06:16]} Ke7 {[%clk 0:06:19]} 31. Kf1 {[%clk
0:06:06]} Rc7 {[%clk 0:03:14]} 32. Rb1 {[%clk 0:06:01]} Ke8 {[%clk 0:02:47]} 33.
Ke2 {[%clk 0:05:52]} Rxc3 {[%clk 0:02:47]} 34. Rxb7 {[%clk 0:05:53]} Rc4 {[%clk
0:02:48]} 35. Rb8+ {[%clk 0:05:48]} Ke7 {[%clk 0:02:49]} 36. Rb7+ {[%clk
0:05:49]} Ke8 {[%clk 0:02:50]} 1/2-1/2

[Variant "Standard"]
[Site "Europe Echecs"]

[Event "Champions Chess Tour Finals 2024"]
[Date "2024.12.18"]
[White "Keymer, Vincent"]
[Black "Nepomniachtchi, Ian"]
[WhiteElo "2649"]
[BlackElo "2758"]
[Round "6.3"]
[Result "0-1"]
[TimeControl "600+2"]

1. d4 {[%clk 0:09:58]} Nf6 {[%clk 0:07:21]} 2. Nf3 {[%clk 0:09:57]} d5 {[%clk
0:07:20]} 3. e3 {[%clk 0:09:56]} e6 {[%clk 0:07:18]} 4. Nbd2 {[%clk 0:09:53]} b6
{[%clk 0:07:14]} 5. b3 {[%clk 0:09:52]} Bb7 {[%clk 0:07:13]} 6. Bb2 {[%clk
0:09:51]} Be7 {[%clk 0:07:11]} 7. Bd3 {[%clk 0:09:47]} O-O {[%clk 0:07:08]} 8.
O-O {[%clk 0:09:45]} Nbd7 {[%clk 0:07:07]} 9. a4 {[%clk 0:09:28]} c5 {[%clk
0:06:55]} 10. Qe2 {[%clk 0:09:21]} Ne4 {[%clk 0:06:49]} 11. Rfd1 {[%clk
0:09:05]} Rc8 {[%clk 0:06:38]} 12. c4 {[%clk 0:08:29]} cxd4 {[%clk 0:06:29]} 13.
exd4 {[%clk 0:08:18]} Nxd2 {[%clk 0:06:22]} 14. Rxd2 {[%clk 0:08:16]} Qc7 {[%clk
0:06:07]} 15. Qe3 {[%clk 0:07:56]} Rfd8 {[%clk 0:05:55]} 16. Rc2 {[%clk
0:07:51]} Qb8 {[%clk 0:05:50]} 17. h3 {[%clk 0:07:46]} Bf6 {[%clk 0:05:43]} 18.
a5 {[%clk 0:06:55]} dxc4 {[%clk 0:05:06]} 19. bxc4 {[%clk 0:06:54]} Nf8 {[%clk
0:05:01]} 20. Ng5 {[%clk 0:06:33]} Ng6 {[%clk 0:04:50]} 21. axb6 {[%clk
0:06:07]} axb6 {[%clk 0:04:49]} 22. Ne4 {[%clk 0:06:06]} Bxe4 {[%clk 0:04:47]}
23. Bxe4 {[%clk 0:06:02]} Qd6 {[%clk 0:04:38]} 24. Rd1 {[%clk 0:06:01]} Qb4
{[%clk 0:04:36]} 25. Bd3 {[%clk 0:05:48]} Ne7 {[%clk 0:04:29]} 26. Bc3 {[%clk
0:05:33]} Qa4 {[%clk 0:04:21]} 27. g4 {[%clk 0:04:50]} Rxc4 {[%clk 0:03:54]} 28.
Qe4 {[%clk 0:04:10]} Rxc3 {[%clk 0:03:53]} 29. Qxh7+ {[%clk 0:04:04]} Kf8 {[%clk
0:03:52]} 30. Rxc3 {[%clk 0:03:51]} Qxd1+ {[%clk 0:03:50]} 31. Kg2 {[%clk
0:03:51]} Qd2 {[%clk 0:03:41]} 32. Rc7 {[%clk 0:03:23]} Qh6 {[%clk 0:03:39]} 33.
Qe4 {[%clk 0:03:22]} Nd5 {[%clk 0:03:34]} 0-1

[Variant "Standard"]
[Site "Europe Echecs"]

[Event "Champions Chess Tour Finals 2024"]
[Date "2024.12.19"]
[White "Firouzja, Alireza"]
[Black "Keymer, Vincent"]
[WhiteElo "2756"]
[BlackElo "2649"]
[Round "7.1"]
[Result "1/2-1/2"]
[TimeControl "600+2"]

1. Nf3 {[%clk 0:10:03]} d5 {[%clk 0:10:03]} 2. b3 {[%clk 0:10:04]} Nf6 {[%clk
0:10:01]} 3. Bb2 {[%clk 0:10:05]} Bf5 {[%clk 0:10:01]} 4. g3 {[%clk 0:09:57]} e6
{[%clk 0:09:59]} 5. Bg2 {[%clk 0:09:58]} h6 {[%clk 0:10:00]} 6. O-O {[%clk
0:09:56]} Be7 {[%clk 0:10:01]} 7. d3 {[%clk 0:09:54]} O-O {[%clk 0:10:00]} 8.
Nbd2 {[%clk 0:09:54]} c6 {[%clk 0:09:57]} 9. Re1 {[%clk 0:09:53]} Bh7 {[%clk
0:09:57]} 10. e4 {[%clk 0:09:52]} a5 {[%clk 0:09:50]} 11. a4 {[%clk 0:09:45]}
Nbd7 {[%clk 0:09:08]} 12. exd5 {[%clk 0:08:53]} Nxd5 {[%clk 0:08:21]} 13. Nc4
{[%clk 0:08:44]} Bb4 {[%clk 0:08:07]} 14. Nfd2 {[%clk 0:08:02]} Qc7 {[%clk
0:07:05]} 15. Qc1 {[%clk 0:06:31]} Nc3 {[%clk 0:06:23]} 16. Ne3 {[%clk 0:05:25]}
Rae8 {[%clk 0:06:04]} 17. Nd1 {[%clk 0:05:17]} Nd5 {[%clk 0:05:58]} 18. Re2
{[%clk 0:05:01]} e5 {[%clk 0:05:44]} 19. Nc4 {[%clk 0:04:58]} f5 {[%clk
0:05:30]} 20. Ba3 {[%clk 0:04:29]} f4 {[%clk 0:05:24]} 21. Bxb4 {[%clk 0:04:09]}
axb4 {[%clk 0:05:25]} 22. Re1 {[%clk 0:04:04]} N7f6 {[%clk 0:05:05]} 23. Nd2
{[%clk 0:03:07]} Qb6 {[%clk 0:05:03]} 24. a5 {[%clk 0:02:48]} Qc5 {[%clk
0:04:58]} 25. Ne4 {[%clk 0:01:27]} Bxe4 {[%clk 0:04:13]} 26. dxe4 {[%clk
0:01:10]} Nc3 {[%clk 0:04:00]} 27. Nxc3 {[%clk 0:00:38]} Qxc3 {[%clk 0:03:44]}
28. gxf4 {[%clk 0:00:37]} exf4 {[%clk 0:03:01]} 29. Qxf4 {[%clk 0:00:39]} Qxc2
{[%clk 0:02:27]} 30. Qe3 {[%clk 0:00:23]} Nd5 {[%clk 0:02:02]} 31. Qe2 {[%clk
0:00:24]} Qxb3 {[%clk 0:01:59]} 32. Rab1 {[%clk 0:00:25]} Qc3 {[%clk 0:00:54]}
33. Qa2 {[%clk 0:00:16]} Rf7 {[%clk 0:00:24]} 34. Rec1 {[%clk 0:00:14]} b3
{[%clk 0:00:25]} 35. Qxb3 {[%clk 0:00:09]} Qxb3 {[%clk 0:00:26]} 36. Rxb3 {[%clk
0:00:10]} Nf4 {[%clk 0:00:27]} 37. Re1 {[%clk 0:00:05]} Re5 {[%clk 0:00:28]} 38.
Bf1 {[%clk 0:00:06]} Kh7 {[%clk 0:00:25]} 39. a6 {[%clk 0:00:05]} bxa6 {[%clk
0:00:19]} 40. Bxa6 {[%clk 0:00:07]} Rf6 {[%clk 0:00:16]} 41. Bf1 {[%clk
0:00:07]} Ne6 {[%clk 0:00:09]} 42. Kg2 {[%clk 0:00:06]} Nf4+ {[%clk 0:00:06]}
43. Kg1 {[%clk 0:00:07]} Ne6 {[%clk 0:00:07]} 44. Kg2 {[%clk 0:00:08]} Nd4
{[%clk 0:00:05]} 45. Rc3 {[%clk 0:00:05]} c5 {[%clk 0:00:04]} 46. f3 {[%clk
0:00:05]} Ne6 {[%clk 0:00:05]} 47. Kf2 {[%clk 0:00:06]} Nf4 {[%clk 0:00:06]} 48.
Rec1 {[%clk 0:00:06]} Rc6 {[%clk 0:00:06]} 49. Kg3 {[%clk 0:00:05]} g5 {[%clk
0:00:04]} 50. h4 {[%clk 0:00:05]} Kg7 {[%clk 0:00:05]} 51. hxg5 {[%clk 0:00:06]}
hxg5 {[%clk 0:00:07]} 52. Rd1 {[%clk 0:00:04]} Rc7 {[%clk 0:00:08]} 53. Rc2
{[%clk 0:00:05]} Kf6 {[%clk 0:00:08]} 54. Bc4 {[%clk 0:00:04]} Rh7 {[%clk
0:00:06]} 55. Rcd2 {[%clk 0:00:04]} Rh3+ {[%clk 0:00:06]} 56. Kg4 {[%clk
0:00:05]} Rh4+ {[%clk 0:00:07]} 57. Kg3 {[%clk 0:00:06]} Rh3+ {[%clk 0:00:07]}
58. Kf2 {[%clk 0:00:05]} Rh2+ {[%clk 0:00:09]} 59. Ke3 {[%clk 0:00:06]} Rxd2
{[%clk 0:00:07]} 60. Rxd2 {[%clk 0:00:07]} Ke7 {[%clk 0:00:05]} 61. Ra2 {[%clk
0:00:07]} Kf6 {[%clk 0:00:05]} 62. Ra6+ {[%clk 0:00:08]} Ke7 {[%clk 0:00:06]}
63. Kf2 {[%clk 0:00:08]} Kf8 {[%clk 0:00:05]} 64. Kg3 {[%clk 0:00:09]} Kg7
{[%clk 0:00:05]} 65. Kg4 {[%clk 0:00:10]} Ng2 {[%clk 0:00:06]} 66. Ra3 {[%clk
0:00:07]} Nf4 {[%clk 0:00:06]} 67. Ra7+ {[%clk 0:00:08]} Kg6 {[%clk 0:00:07]}
68. Ra6+ {[%clk 0:00:08]} Kg7 {[%clk 0:00:08]} 69. Ra2 {[%clk 0:00:08]} Kg6
{[%clk 0:00:09]} 70. Rd2 {[%clk 0:00:09]} Kg7 {[%clk 0:00:09]} 71. Bb5 {[%clk
0:00:09]} Kf6 {[%clk 0:00:08]} 72. Rd6+ {[%clk 0:00:07]} Kg7 {[%clk 0:00:09]}
73. Rc6 {[%clk 0:00:05]} Ne6 {[%clk 0:00:07]} 74. Bc4 {[%clk 0:00:04]} Nf4
{[%clk 0:00:08]} 75. Ba6 {[%clk 0:00:05]} Ne6 {[%clk 0:00:05]} 76. Bc8 {[%clk
0:00:06]} Nd4 {[%clk 0:00:06]} 77. Rd6 {[%clk 0:00:05]} Ne2 {[%clk 0:00:06]} 78.
Bf5 {[%clk 0:00:05]} Nd4 {[%clk 0:00:07]} 79. Kxg5 {[%clk 0:00:04]} Nxf5 {[%clk
0:00:06]} 80. exf5 {[%clk 0:00:03]} Kf7 {[%clk 0:00:06]} 81. Rd7+ {[%clk
0:00:04]} Re7 {[%clk 0:00:07]} 82. Rd6 {[%clk 0:00:05]} Rc7 {[%clk 0:00:08]} 83.
Rh6 {[%clk 0:00:06]} Kg8 {[%clk 0:00:08]} 84. Rg6+ {[%clk 0:00:06]} Kf8 {[%clk
0:00:09]} 85. Rf6+ {[%clk 0:00:07]} Kg8 {[%clk 0:00:10]} 86. Rd6 {[%clk
0:00:07]} c4 {[%clk 0:00:12]} 87. f6 {[%clk 0:00:06]} Kf7 {[%clk 0:00:11]} 88.
Rd2 {[%clk 0:00:06]} c3 {[%clk 0:00:12]} 89. Rc2 {[%clk 0:00:07]} Rc5+ {[%clk
0:00:14]} 90. Kf4 {[%clk 0:00:08]} Kxf6 {[%clk 0:00:15]} 91. Ke3 {[%clk
0:00:10]} Kf5 {[%clk 0:00:16]} 92. Kd3 {[%clk 0:00:11]} Rc7 {[%clk 0:00:17]} 93.
Rxc3 {[%clk 0:00:12]} Rxc3+ {[%clk 0:00:18]} 94. Kxc3 {[%clk 0:00:14]} Kf4
{[%clk 0:00:19]} 95. Kd3 {[%clk 0:00:15]} Kxf3 {[%clk 0:00:21]} 1/2-1/2

[Variant "Standard"]
[Site "Europe Echecs"]

[Event "Champions Chess Tour Finals 2024"]
[Date "2024.12.19"]
[White "Nepomniachtchi, Ian"]
[Black "Aronian, Levon"]
[WhiteElo "2758"]
[BlackElo "2818"]
[Round "7.1"]
[Result "1-0"]
[TimeControl "600+2"]

1. e4 {[%clk 0:10:02]} e5 {[%clk 0:10:03]} 2. Nf3 {[%clk 0:10:02]} Nc6 {[%clk
0:10:04]} 3. Bc4 {[%clk 0:10:03]} Nf6 {[%clk 0:10:04]} 4. d3 {[%clk 0:10:04]}
Be7 {[%clk 0:10:05]} 5. O-O {[%clk 0:10:02]} O-O {[%clk 0:10:05]} 6. Nbd2 {[%clk
0:10:03]} d5 {[%clk 0:10:04]} 7. exd5 {[%clk 0:10:03]} Nxd5 {[%clk 0:10:04]} 8.
h3 {[%clk 0:10:03]} Nb6 {[%clk 0:09:46]} 9. Bb3 {[%clk 0:10:04]} Kh8 {[%clk
0:09:47]} 10. a4 {[%clk 0:09:46]} a5 {[%clk 0:09:47]} 11. Re1 {[%clk 0:09:47]}
f6 {[%clk 0:09:48]} 12. Nf1 {[%clk 0:09:47]} Bf5 {[%clk 0:09:31]} 13. Nh4 {[%clk
0:09:48]} Bd7 {[%clk 0:09:30]} 14. c3 {[%clk 0:09:34]} f5 {[%clk 0:08:30]} 15.
Nf3 {[%clk 0:09:34]} Bf6 {[%clk 0:08:22]} 16. Ng3 {[%clk 0:09:34]} Qe8 {[%clk
0:08:15]} 17. Bf4 {[%clk 0:08:42]} Qg6 {[%clk 0:07:05]} 18. Bxe5 {[%clk
0:08:21]} Nxe5 {[%clk 0:06:18]} 19. Nxe5 {[%clk 0:07:59]} Bxe5 {[%clk 0:06:19]}
20. Rxe5 {[%clk 0:08:00]} f4 {[%clk 0:06:19]} 21. Ne4 {[%clk 0:08:01]} f3 {[%clk
0:05:22]} 22. Rg5 {[%clk 0:07:54]} Qh6 {[%clk 0:05:09]} 23. Rg3 {[%clk 0:06:39]}
fxg2 {[%clk 0:05:05]} 24. Ng5 {[%clk 0:06:28]} Bc6 {[%clk 0:04:28]} 25. Qg4
{[%clk 0:05:06]} Nd5 {[%clk 0:03:30]} 26. Re1 {[%clk 0:05:06]} Nf4 {[%clk
0:03:06]} 27. Re7 {[%clk 0:03:20]} Rae8 {[%clk 0:01:33]} 28. Rxe8 {[%clk
0:03:20]} Bxe8 {[%clk 0:01:34]} 29. Rf3 {[%clk 0:03:19]} Qf6 {[%clk 0:00:49]}
30. Nf7+ {[%clk 0:03:19]} Bxf7 {[%clk 0:00:15]} 31. Rxf4 {[%clk 0:03:17]} Bxb3
{[%clk 0:00:09]} 32. Rxf6 {[%clk 0:03:17]} gxf6 {[%clk 0:00:10]} 33. Qd4 {[%clk
0:03:07]} Rg8 {[%clk 0:00:04]} 34. Qxf6+ {[%clk 0:03:07]} Rg7 {[%clk 0:00:05]}
35. Qd8+ {[%clk 0:03:03]} Bg8 {[%clk 0:00:06]} 36. Qf6 {[%clk 0:02:40]} h5
{[%clk 0:00:05]} 37. Qh6+ {[%clk 0:02:38]} Bh7 {[%clk 0:00:06]} 38. Qxh5 {[%clk
0:02:37]} Rg6 {[%clk 0:00:03]} 39. Qxa5 {[%clk 0:02:36]} Kg7 {[%clk 0:00:03]}
40. Qxc7+ {[%clk 0:02:36]} Kh6 {[%clk 0:00:05]} 41. Qxb7 {[%clk 0:02:35]} Rg5
{[%clk 0:00:03]} 42. Qf3 {[%clk 0:02:32]} Bg8 1-0

[Variant "Standard"]
[Site "Europe Echecs"]

[Event "Champions Chess Tour Finals 2024"]
[Date "2024.12.19"]
[White "Carlsen, Magnus"]
[Black "Lazavik, Denis"]
[WhiteElo "2838"]
[BlackElo "2553"]
[Round "7.1"]
[Result "1-0"]
[TimeControl "600+2"]

1. e4 {[%clk 0:10:01]} c5 {[%clk 0:10:01]} 2. Nf3 {[%clk 0:10:01]} Nc6 {[%clk
0:10:01]} 3. Bb5 {[%clk 0:10:00]} e6 {[%clk 0:10:01]} 4. Bxc6 {[%clk 0:09:14]}
bxc6 {[%clk 0:10:01]} 5. b3 {[%clk 0:09:12]} f6 {[%clk 0:09:57]} 6. O-O {[%clk
0:08:28]} Nh6 {[%clk 0:09:48]} 7. c3 {[%clk 0:07:45]} Nf7 {[%clk 0:09:26]} 8. d4
{[%clk 0:06:47]} cxd4 {[%clk 0:08:45]} 9. cxd4 {[%clk 0:06:47]} c5 {[%clk
0:08:31]} 10. d5 {[%clk 0:06:36]} Bd6 {[%clk 0:08:24]} 11. Na3 {[%clk 0:06:10]}
Ba6 {[%clk 0:07:55]} 12. Nc4 {[%clk 0:06:00]} Bxc4 {[%clk 0:07:40]} 13. bxc4
{[%clk 0:06:01]} O-O {[%clk 0:07:38]} 14. Rb1 {[%clk 0:05:36]} Qc7 {[%clk
0:06:52]} 15. Be3 {[%clk 0:05:24]} Rab8 {[%clk 0:06:28]} 16. Qd3 {[%clk
0:05:12]} Rxb1 {[%clk 0:05:53]} 17. Rxb1 {[%clk 0:05:12]} Rb8 {[%clk 0:05:53]}
18. Rb3 {[%clk 0:05:13]} Rb6 {[%clk 0:05:47]} 19. g3 {[%clk 0:05:08]} Ne5 {[%clk
0:03:40]} 20. Nxe5 {[%clk 0:05:08]} Bxe5 {[%clk 0:03:41]} 21. Kg2 {[%clk
0:04:38]} Rxb3 {[%clk 0:02:25]} 22. axb3 {[%clk 0:04:39]} h6 {[%clk 0:01:32]}
23. f4 {[%clk 0:04:31]} Bd6 {[%clk 0:01:33]} 24. dxe6 {[%clk 0:04:31]} dxe6
{[%clk 0:01:34]} 25. f5 {[%clk 0:04:32]} exf5 {[%clk 0:01:24]} 26. Qd5+ {[%clk
0:04:31]} Kh8 {[%clk 0:01:13]} 27. exf5 {[%clk 0:04:31]} Bf8 {[%clk 0:01:05]}
28. Kh3 {[%clk 0:03:43]} Qe7 {[%clk 0:00:45]} 29. Bf4 {[%clk 0:03:29]} Qe2
{[%clk 0:00:26]} 30. Qe6 {[%clk 0:03:06]} Qh5+ {[%clk 0:00:06]} 31. Kg2 {[%clk
0:03:07]} Qd1 {[%clk 0:00:06]} 32. Qf7 {[%clk 0:01:20]} Qe2+ {[%clk 0:00:07]}
33. Kh3 {[%clk 0:01:18]} Be7 {[%clk 0:00:08]} 34. Qe6 {[%clk 0:00:21]} Qxe6
{[%clk 0:00:09]} 35. fxe6 {[%clk 0:00:22]} Kh7 {[%clk 0:00:10]} 36. g4 {[%clk
0:00:20]} g5 {[%clk 0:00:09]} 37. Bb8 {[%clk 0:00:16]} Kg6 {[%clk 0:00:09]} 38.
Kg2 {[%clk 0:00:05]} f5 {[%clk 0:00:09]} 39. h3 {[%clk 0:00:05]} fxg4 {[%clk
0:00:04]} 40. hxg4 {[%clk 0:00:07]} Kf6 {[%clk 0:00:05]} 41. Bxa7 {[%clk
0:00:07]} Kxe6 {[%clk 0:00:06]} 42. Kf3 {[%clk 0:00:07]} Ke5 {[%clk 0:00:05]}
43. Ke3 {[%clk 0:00:08]} Bd6 {[%clk 0:00:07]} 44. Bb6 {[%clk 0:00:08]} Ke6
{[%clk 0:00:05]} 45. Ke4 {[%clk 0:00:09]} Be7 {[%clk 0:00:05]} 46. Ba5 {[%clk
0:00:06]} Bf6 {[%clk 0:00:06]} 47. Bd2 {[%clk 0:00:06]} Bg7 {[%clk 0:00:04]} 48.
b4 {[%clk 0:00:06]} cxb4 {[%clk 0:00:05]} 49. Bxb4 {[%clk 0:00:07]} Be5 {[%clk
0:00:04]} 50. Bf8 {[%clk 0:00:08]} Bf4 {[%clk 0:00:04]} 51. Bxh6 {[%clk
0:00:08]} Kd6 {[%clk 0:00:05]} 52. Bf8+ {[%clk 0:00:09]} Kc6 {[%clk 0:00:05]}
53. Kf5 {[%clk 0:00:10]} Be3 {[%clk 0:00:05]} 54. Be7 {[%clk 0:00:11]} Bd2
{[%clk 0:00:04]} 55. Bxg5 {[%clk 0:00:11]} Bb4 {[%clk 0:00:03]} 56. Be3 {[%clk
0:00:12]} 1-0

[Variant "Standard"]
[Site "Europe Echecs"]